Workbook

Sheet sheet1
A1: 附件
A2: 兴义市2024年事业单位公开招聘教师总成绩及进入体检人员名单
A3: 序号 | B3: 笔试准考证号 | C3: 招聘单位 | D3: 用人单位 | E3: 单位代码 | F3: 岗位名称 | G3: 岗位代码 | H3: 笔试成绩 | I3: 面试准考证号 | J3: 面试成绩 | K3: 总成绩 | L3: 是否进入体检
A4: 1 | B4: 20240204928 | C4: 兴义市教育局 | D4: 兴义市第十六中学 | E4: 3012401 | F4: 初中语文教师 | G4: 081101 | H4: 116.5 | I4: 0915001 | J4: 77.76 | K4: =ROUND((H4/1.5*0.6+J4*0.4),2) -> 77.70 | L4: 是
A5: 2 | B5: 20240103206 | C5: 兴义市教育局 | D5: 兴义市第十六中学 | E5: 3012401 | F5: 初中语文教师 | G5: 081101 | H5: 113 | I5: 0915002 | J5: 缺考 | K5: =ROUND(H5/1.5*0.6,2) -> 45.20
A6: 3 | B6: 20240303614 | C6: 兴义市教育局 | D6: 兴义市第十六中学 | E6: 3012401 | F6: 初中数学教师 | G6: 081102 | H6: 116.5 | I6: 0915003 | J6: 88.88 | K6: 82.15 | L6: 是
A7: 4 | B7: 20240302701 | C7: 兴义市教育局 | D7: 兴义市第十六中学 | E7: 3012401 | F7: 初中数学教师 | G7: 081102 | H7: 101.5 | I7: 0915004 | J7: 83.06 | K7: 73.82
A8: 5 | B8: 20240405530 | C8: 兴义市教育局 | D8: 兴义市第十六中学 | E8: 3012401 | F8: 初中英语教师 | G8: 081103 | H8: 116 | I8: 0915005 | J8: 83.92 | K8: 79.97 | L8: 是
A9: 6 | B9: 20240302321 | C9: 兴义市教育局 | D9: 兴义市第十六中学 | E9: 3012401 | F9: 初中英语教师 | G9: 081103 | H9: 109 | I9: 0915006 | J9: 84.66 | K9: 77.46
A10: 7 | B10: 20240304510 | C10: 兴义市教育局 | D10: 兴义市第十六中学 | E10: 3012401 | F10: 初中物理教师 | G10: 081104 | H10: 114.5 | I10: 0915007 | J10: 89.74 | K10: 81.70 | L10: 是
A11: 8 | B11: 20240303617 | C11: 兴义市教育局 | D11: 兴义市第十六中学 | E11: 3012401 | F11: 初中物理教师 | G11: 081104 | H11: 105 | I11: 0915008 | J11: 84.16 | K11: 75.66
A12: 9 | B12: 20240504210 | C12: 兴义市教育局 | D12: 兴义市第十六中学 | E12: 3012401 | F12: 初中历史教师 | G12: 081105 | H12: 123 | I12: 0915009 | J12: 83.76 | K12: 82.70 | L12: 是
A13: 10 | B13: 20240302103 | C13: 兴义市教育局 | D13: 兴义市第十六中学 | E13: 3012401 | F13: 初中历史教师 | G13: 081105 | H13: 114.5 | I13: 0915010 | J13: 88.04 | K13: 81.02 | L13: 是
A14: 11 | B14: 20240103520 | C14: 兴义市教育局 | D14: 兴义市第十六中学 | E14: 3012401 | F14: 初中历史教师 | G14: 081105 | H14: 114 | I14: 0915011 | J14: 86.20 | K14: 80.08
A15: 12 | B15: 20240503408 | C15: 兴义市教育局 | D15: 兴义市第十六中学 | E15: 3012401 | F15: 初中历史教师 | G15: 081105 | H15: 113.5 | I15: 0915012 | J15: 85.74 | K15: 79.70
A16: 13 | B16: 20240103219 | C16: 兴义市教育局 | D16: 兴义市第十六中学 | E16: 3012401 | F16: 初中地理教师 | G16: 081106 | H16: 119.5 | I16: 0915013 | J16: 90.40 | K16: 83.96 | L16: 是
A17: 14 | B17: 20240402020 | C17: 兴义市教育局 | D17: 兴义市第十六中学 | E17: 3012401 | F17: 初中地理教师 | G17: 081106 | H17: 119 | I17: 0915014 | J17: 87.92 | K17: 82.77
A18: 15 | B18: 20240503821 | C18: 兴义市教育局 | D18: 兴义市第十六中学 | E18: 3012401 | F18: 初中体育与健康教师 | G18: 081107 | H18: 112.5 | I18: 0915015 | J18: 89.08 | K18: 80.63 | L18: 是
A19: 16 | B19: 20240205206 | C19: 兴义市教育局 | D19: 兴义市第十六中学 | E19: 3012401 | F19: 初中体育与健康教师 | G19: 081107 | H19: 108.5 | I19: 0915016 | J19: 80.36 | K19: 75.54
A20: 18 | B20: 20240204720 | C20: 兴义市教育局 | D20: 兴义市第十七中学 | E20: 3012402 | F20: 初中语文教师 | G20: 081108 | H20: 119 | I20: 0915018 | J20: 88.96 | K20: 83.18 | L20: 是
A21: 17 | B21: 20240102509 | C21: 兴义市教育局 | D21: 兴义市第十七中学 | E21: 3012402 | F21: 初中语文教师 | G21: 081108 | H21: 121.5 | I21: 0915017 | J21: 85.72 | K21: 82.89 | L21: 是
A22: 19 | B22: 20240204214 | C22: 兴义市教育局 | D22: 兴义市第十七中学 | E22: 3012402 | F22: 初中语文教师 | G22: 081108 | H22: 119 | I22: 0915019 | J22: 88.10 | K22: 82.84
A23: 20 | B23: 20240303427 | C23: 兴义市教育局 | D23: 兴义市第十七中学 | E23: 3012402 | F23: 初中语文教师 | G23: 081108 | H23: 116 | I23: 0915020 | J23: 85.08 | K23: 80.43
A24: 21 | B24: 20240100902 | C24: 兴义市教育局 | D24: 兴义市第十七中学 | E24: 3012402 | F24: 初中数学教师 | G24: 081109 | H24: 117.5 | I24: 0915021 | J24: 91.98 | K24: 83.79 | L24: 是
A25: 22 | B25: 20240200623 | C25: 兴义市教育局 | D25: 兴义市第十七中学 | E25: 3012402 | F25: 初中数学教师 | G25: 081109 | H25: 117 | I25: 0915022 | J25: 86.86 | K25: 81.54 | L25: 是
A26: 24 | B26: 20240206012 | C26: 兴义市教育局 | D26: 兴义市第十七中学 | E26: 3012402 | F26: 初中数学教师 | G26: 081109 | H26: 113 | I26: 0915024 | J26: 83.18 | K26: 78.47
A27: 23 | B27: 20240504104 | C27: 兴义市教育局 | D27: 兴义市第十七中学 | E27: 3012402 | F27: 初中数学教师 | G27: 081109 | H27: 113 | I27: 0915023 | J27: 80.50 | K27: 77.40
A28: 25 | B28: 20240501225 | C28: 兴义市教育局 | D28: 兴义市第十七中学 | E28: 3012402 | F28: 初中英语教师 | G28: 081110 | H28: 119 | I28: 0915025 | J28: 90.32 | K28: 83.73 | L28: 是
A29: 28 | B29: 20240502611 | C29: 兴义市教育局 | D29: 兴义市第十七中学 | E29: 3012402 | F29: 初中英语教师 | G29: 081110 | H29: 116.5 | I29: 0915028 | J29: 90.68 | K29: 82.87 | L29: 是
A30: 27 | B30: 20240200805 | C30: 兴义市教育局 | D30: 兴义市第十七中学 | E30: 3012402 | F30: 初中英语教师 | G30: 081110 | H30: 117.5 | I30: 0915027 | J30: 88.08 | K30: 82.23
A31: 26 | B31: 20240206304 | C31: 兴义市教育局 | D31: 兴义市第十七中学 | E31: 3012402 | F31: 初中英语教师 | G31: 081110 | H31: 118 | I31: 0915026 | J31: 82.60 | K31: 80.24
A32: 29 | B32: 20240300826 | C32: 兴义市教育局 | D32: 兴义市第十七中学 | E32: 3012402 | F32: 初中物理教师 | G32: 081111 | H32: 120 | I32: 0915029 | J32: 84.30 | K32: 81.72 | L32: 是
A33: 30 | B33: 20240205219 | C33: 兴义市教育局 | D33: 兴义市第十七中学 | E33: 3012402 | F33: 初中物理教师 | G33: 081111 | H33: 113 | I33: 0915030 | J33: 83.00 | K33: 78.40
A34: 31 | B34: 20240206522 | C34: 兴义市教育局 | D34: 兴义市第十七中学 | E34: 3012402 | F34: 初中历史教师 | G34: 081112 | H34: 105 | I34: 0915031 | J34: 81.30 | K34: 74.52 | L34: 是
A35: 32 | B35: 20240103420 | C35: 兴义市教育局 | D35: 兴义市第十七中学 | E35: 3012402 | F35: 初中历史教师 | G35: 081112 | H35: 101.5 | I35: 0915032 | J35: 81.10 | K35: 73.04
A36: 33 | B36: 20240100519 | C36: 兴义市教育局 | D36: 兴义市第十五中学 | E36: 3012403 | F36: 初中英语教师 | G36: 081113 | H36: 116.5 | I36: 0915033 | J36: 86.50 | K36: 81.20 | L36: 是
A37: 34 | B37: 20240303016 | C37: 兴义市教育局 | D37: 兴义市第十五中学 | E37: 3012403 | F37: 初中英语教师 | G37: 081113 | H37: 111.5 | I37: 0915034 | J37: 83.60 | K37: 78.04
A38: 35 | B38: 20240205720 | C38: 兴义市教育局 | D38: 兴义市第十五中学 | E38: 3012403 | F38: 初中历史教师 | G38: 081114 | H38: 122 | I38: 0915035 | J38: 80.30 | K38: 80.92 | L38: 是
A39: 36 | B39: 20240403829 | C39: 兴义市教育局 | D39: 兴义市第十五中学 | E39: 3012403 | F39: 初中历史教师 | G39: 081114 | H39: 106.5 | I39: 0915036 | J39: 76.90 | K39: 73.36
A40: 37 | B40: 20240204004 | C40: 兴义市教育局 | D40: 兴义市第四中学 | E40: 3012404 | F40: 初中语文教师 | G40: 081115 | H40: 123.5 | I40: 0915037 | J40: 85.30 | K40: 83.52 | L40: 是
A41: 39 | B41: 20240405126 | C41: 兴义市教育局 | D41: 兴义市第四中学 | E41: 3012404 | F41: 初中语文教师 | G41: 081115 | H41: 118 | I41: 0915039 | J41: 87.50 | K41: 82.20 | L41: 是
A42: 38 | B42: 20240200509 | C42: 兴义市教育局 | D42: 兴义市第四中学 | E42: 3012404 | F42: 初中语文教师 | G42: 081115 | H42: 118.5 | I42: 0915038 | J42: 83.60 | K42: 80.84 | L42: 是
A43: 40 | B43: 20240202321 | C43: 兴义市教育局 | D43: 兴义市第四中学 | E43: 3012404 | F43: 初中语文教师 | G43: 081115 | H43: 118 | I43: 0915040 | J43: 83.30 | K43: 80.52
A44: 41 | B44: 20240203825 | C44: 兴义市教育局 | D44: 兴义市第四中学 | E44: 3012404 | F44: 初中语文教师 | G44: 081115 | H44: 117 | I44: 0915041 | J44: 74.30 | K44: 76.52
A45: 42 | B45: 20240401805 | C45: 兴义市教育局 | D45: 兴义市第四中学 | E45: 3012404 | F45: 初中语文教师 | G45: 081115 | H45: 116.5 | I45: 0915042 | J45: 72.70 | K45: 75.68
A46: 49 | B46: 20240103501 | C46: 兴义市教育局 | D46: 兴义市第四中学 | E46: 3012404 | F46: 初中数学教师 | G46: 081116 | H46: 115 | I46: 0915049 | J46: 86.70 | K46: 80.68 | L46: 是
A47: 43 | B47: 20240504714 | C47: 兴义市教育局 | D47: 兴义市第四中学 | E47: 3012404 | F47: 初中数学教师 | G47: 081116 | H47: 121 | I47: 0915043 | J47: 80.20 | K47: 80.48 | L47: 是
A48: 45 | B48: 20240207219 | C48: 兴义市教育局 | D48: 兴义市第四中学 | E48: 3012404 | F48: 初中数学教师 | G48: 081116 | H48: 118 | I48: 0915045 | J48: 81.80 | K48: 79.92 | L48: 是
A49: 47 | B49: 20240301928 | C49: 兴义市教育局 | D49: 兴义市第四中学 | E49: 3012404 | F49: 初中数学教师 | G49: 081116 | H49: 116.5 | I49: 0915047 | J49: 82.30 | K49: 79.52
A50: 44 | B50: 20240201910 | C50: 兴义市教育局 | D50: 兴义市第四中学 | E50: 3012404 | F50: 初中数学教师 | G50: 081116 | H50: 120 | I50: 0915044 | J50: 77.30 | K50: 78.92
A51: 46 | B51: 20240202317 | C51: 兴义市教育局 | D51: 兴义市第四中学 | E51: 3012404 | F51: 初中数学教师 | G51: 081116 | H51: 118 | I51: 0915046 | J51: 75.70 | K51: 77.48
A52: 48 | B52: 20240104413 | C52: 兴义市教育局 | D52: 兴义市第四中学 | E52: 3012404 | F52: 初中数学教师 | G52: 081116 | H52: 115 | I52: 0915048 | J52: 74.30 | K52: 75.72
A53: 50 | B53: 20240500223 | C53: 兴义市教育局 | D53: 兴义市第四中学 | E53: 3012404 | F53: 初中英语教师 | G53: 081117 | H53: 123.5 | I53: 0915050 | J53: 84.28 | K53: 83.11 | L53: 是
A54: 55 | B54: 20240503104 | C54: 兴义市教育局 | D54: 兴义市第四中学 | E54: 3012404 | F54: 初中英语教师 | G54: 081117 | H54: 117.5 | I54: 0915055 | J54: 89.24 | K54: 82.70 | L54: 是
A55: 54 | B55: 20240100701 | C55: 兴义市教育局 | D55: 兴义市第四中学 | E55: 3012404 | F55: 初中英语教师 | G55: 081117 | H55: 118 | I55: 0915054 | J55: 88.62 | K55: 82.65 | L55: 是
A56: 56 | B56: 20240100817 | C56: 兴义市教育局 | D56: 兴义市第四中学 | E56: 3012404 | F56: 初中英语教师 | G56: 081117 | H56: 117 | I56: 0915056 | J56: 89.02 | K56: 82.41 | L56: 是
A57: 52 | B57: 20240201003 | C57: 兴义市教育局 | D57: 兴义市第四中学 | E57: 3012404 | F57: 初中英语教师 | G57: 081117 | H57: 119 | I57: 0915052 | J57: 86.80 | K57: 82.32
A58: 51 | B58: 20240501807 | C58: 兴义市教育局 | D58: 兴义市第四中学 | E58: 3012404 | F58: 初中英语教师 | G58: 081117 | H58: 120 | I58: 0915051 | J58: 83.17 | K58: 81.27
A59: 57 | B59: 20240403702 | C59: 兴义市教育局 | D59: 兴义市第四中学 | E59: 3012404 | F59: 初中英语教师 | G59: 081117 | H59: 116.5 | I59: 0915057 | J59: 85.64 | K59: 80.86
A60: 53 | B60: 20240403516 | C60: 兴义市教育局 | D60: 兴义市第四中学 | E60: 3012404 | F60: 初中英语教师 | G60: 081117 | H60: 118.5 | I60: 0915053 | J60: 82.18 | K60: 80.27
A61: 58 | B61: 20240203208 | C61: 兴义市教育局 | D61: 兴义市第四中学 | E61: 3012404 | F61: 初中英语教师 | G61: 081117 | H61: 116.5 | I61: 0915058 | J61: 84.10 | K61: 80.24
A62: 62 | B62: 20240102824 | C62: 兴义市教育局 | D62: 兴义市第四中学 | E62: 3012404 | F62: 初中物理教师 | G62: 081118 | H62: 114 | I62: 0915062 | J62: 89.30 | K62: 81.32 | L62: 是
A63: 59 | B63: 20240202424 | C63: 兴义市教育局 | D63: 兴义市第四中学 | E63: 3012404 | F63: 初中物理教师 | G63: 081118 | H63: 117.5 | I63: 0915059 | J63: 82.40 | K63: 79.96 | L63: 是
A64: 61 | B64: 20240302902 | C64: 兴义市教育局 | D64: 兴义市第四中学 | E64: 3012404 | F64: 初中物理教师 | G64: 081118 | H64: 114.5 | I64: 0915061 | J64: 84.10 | K64: 79.44 | L64: 是
A65: 60 | B65: 20240103302 | C65: 兴义市教育局 | D65: 兴义市第四中学 | E65: 3012404 | F65: 初中物理教师 | G65: 081118 | H65: 116 | I65: 0915060 | J65: 80.80 | K65: 78.72
A66: 63 | B66: 20240206914 | C66: 兴义市教育局 | D66: 兴义市第四中学 | E66: 3012404 | F66: 初中物理教师 | G66: 081118 | H66: 114 | I66: 0915063 | J66: 77.60 | K66: 76.64
A67: 64 | B67: 20240103405 | C67: 兴义市教育局 | D67: 兴义市第四中学 | E67: 3012404 | F67: 初中物理教师 | G67: 081118 | H67: 113.5 | I67: 0915064 | J67: 74.70 | K67: 75.28
A68: 65 | B68: 20240303507 | C68: 兴义市教育局 | D68: 兴义市第四中学 | E68: 3012404 | F68: 初中化学教师 | G68: 081119 | H68: 118.5 | I68: 0915065 | J68: 84.52 | K68: 81.21 | L68: 是
A69: 66 | B69: 20240502917 | C69: 兴义市教育局 | D69: 兴义市第四中学 | E69: 3012404 | F69: 初中化学教师 | G69: 081119 | H69: 117.5 | I69: 0915066 | J69: 83.98 | K69: =ROUND((H69/1.5*0.6+J69*0.4),2) -> 80.59
A70: 67 | B70: 20240404927 | C70: 兴义市教育局 | D70: 兴义市第四中学 | E70: 3012404 | F70: 初中历史教师 | G70: 081120 | H70: 126.5 | I70: 0915067 | J70: 83.38 | K70: 83.95 | L70: 是
A71: 68 | B71: 20240502114 | C71: 兴义市教育局 | D71: 兴义市第四中学 | E71: 3012404 | F71: 初中历史教师 | G71: 081120 | H71: 120 | I71: 0915068 | J71: 89.72 | K71: 83.89 | L71: 是
A72: 72 | B72: 20240303729 | C72: 兴义市教育局 | D72: 兴义市第四中学 | E72: 3012404 | F72: 初中历史教师 | G72: 081120 | H72: 116 | I72: 0915072 | J72: 90.42 | K72: 82.57 | L72: 是
A73: 70 | B73: 20240500425 | C73: 兴义市教育局 | D73: 兴义市第四中学 | E73: 3012404 | F73: 初中历史教师 | G73: 081120 | H73: 117 | I73: 0915070 | J73: 84.16 | K73: 80.46
A74: 71 | B74: 20240301524 | C74: 兴义市教育局 | D74: 兴义市第四中学 | E74: 3012404 | F74: 初中历史教师 | G74: 081120 | H74: 117 | I74: 0915071 | J74: 83.08 | K74: 80.03
A75: 69 | B75: 20240207816 | C75: 兴义市教育局 | D75: 兴义市第四中学 | E75: 3012404 | F75: 初中历史教师 | G75: 081120 | H75: 117.5 | I75: 0915069 | J75: 79.00 | K75: 78.60
A76: 73 | B76: 20240402505 | C76: 兴义市教育局 | D76: 兴义市第四中学 | E76: 3012404 | F76: 初中生物教师 | G76: 081121 | H76: 117 | I76: 0915073 | J76: 83.78 | K76: 80.31 | L76: 是
A77: 74 | B77: 20240200204 | C77: 兴义市教育局 | D77: 兴义市第四中学 | E77: 3012404 | F77: 初中生物教师 | G77: 081121 | H77: 116.5 | I77: 0915074 | J77: 83.02 | K77: 79.81
A78: 75 | B78: 20240201522 | C78: 兴义市教育局 | D78: 兴义市第四中学 | E78: 3012404 | F78: 初中道德与法治教师 | G78: 081122 | H78: 121 | I78: 0915075 | J78: 87.04 | K78: 83.22 | L78: 是
A79: 79 | B79: 20240206623 | C79: 兴义市教育局 | D79: 兴义市第四中学 | E79: 3012404 | F79: 初中道德与法治教师 | G79: 081122 | H79: 118.5 | I79: 0915079 | J79: 87.92 | K79: 82.57 | L79: 是
A80: 77 | B80: 20240400817 | C80: 兴义市教育局 | D80: 兴义市第四中学 | E80: 3012404 | F80: 初中道德与法治教师 | G80: 081122 | H80: 119 | I80: 0915077 | J80: 85.16 | K80: 81.66 | L80: 是
A81: 78 | B81: 20240300211 | C81: 兴义市教育局 | D81: 兴义市第四中学 | E81: 3012404 | F81: 初中道德与法治教师 | G81: 081122 | H81: 118.5 | I81: 0915078 | J81: 85.38 | K81: 81.55 | L81: 是
A82: 76 | B82: 20240102005 | C82: 兴义市教育局 | D82: 兴义市第四中学 | E82: 3012404 | F82: 初中道德与法治教师 | G82: 081122 | H82: 121 | I82: 0915076 | J82: 81.62 | K82: 81.05
A83: 81 | B83: 20240103409 | C83: 兴义市教育局 | D83: 兴义市第四中学 | E83: 3012404 | F83: 初中道德与法治教师 | G83: 081122 | H83: 118.5 | I83: 0915081 | J83: 82.22 | K83: 80.29
A84: 80 | B84: 20240304016 | C84: 兴义市教育局 | D84: 兴义市第四中学 | E84: 3012404 | F84: 初中道德与法治教师 | G84: 081122 | H84: 118.5 | I84: 0915080 | J84: 74.82 | K84: 77.33
A85: 82 | B85: 20240201729 | C85: 兴义市教育局 | D85: 兴义市第四中学 | E85: 3012404 | F85: 初中道德与法治教师 | G85: 081122 | H85: 117.5 | I85: 0915082 | J85: 75.72 | K85: 77.29
A86: 83 | B86: 20240207013 | C86: 兴义市教育局 | D86: 兴义市第四中学 | E86: 3012404 | F86: 初中音乐教师 | G86: 081123 | H86: 120 | I86: 0915083 | J86: 92.20 | K86: 84.88 | L86: 是
A87: 84 | B87: 20240401203 | C87: 兴义市教育局 | D87: 兴义市第四中学 | E87: 3012404 | F87: 初中音乐教师 | G87: 081123 | H87: 112.5 | I87: 0915084 | J87: 91.40 | K87: 81.56
A88: 86 | B88: 20240301714 | C88: 兴义市教育局 | D88: 兴义市第四中学 | E88: 3012404 | F88: 初中美术教师 | G88: 081124 | H88: 117 | I88: 0915086 | J88: 90.40 | K88: 82.96 | L88: 是
A89: 85 | B89: 20240103417 | C89: 兴义市教育局 | D89: 兴义市第四中学 | E89: 3012404 | F89: 初中美术教师 | G89: 081124 | H89: 120.5 | I89: 0915085 | J89: 80.80 | K89: 80.52
A90: 91 | B90: 20240207825 | C90: 兴义市教育局 | D90: 兴义市第四中学 | E90: 3012404 | F90: 初中体育与健康教师 | G90: 081125 | H90: 113.5 | I90: 0915091 | J90: 93.40 | K90: 82.76 | L90: 是
A91: 87 | B91: 20240101628 | C91: 兴义市教育局 | D91: 兴义市第四中学 | E91: 3012404 | F91: 初中体育与健康教师 | G91: 081125 | H91: 115.5 | I91: 0915087 | J91: 90.60 | K91: 82.44 | L91: 是
A92: 90 | B92: 20240204114 | C92: 兴义市教育局 | D92: 兴义市第四中学 | E92: 3012404 | F92: 初中体育与健康教师 | G92: 081125 | H92: 113.5 | I92: 0915090 | J92: 91.00 | K92: 81.80 | L92: 是
A93: 94 | B93: 20240404509 | C93: 兴义市教育局 | D93: 兴义市第四中学 | E93: 3012404 | F93: 初中体育与健康教师 | G93: 081125 | H93: 112.5 | I93: 0915094 | J93: 91.40 | K93: 81.56 | L93: 是
A94: 92 | B94: 20240202804 | C94: 兴义市教育局 | D94: 兴义市第四中学 | E94: 3012404 | F94: 初中体育与健康教师 | G94: 081125 | H94: 113.5 | I94: 0915092 | J94: 89.00 | K94: 81.00
A95: 93 | B95: 20240503829 | C95: 兴义市教育局 | D95: 兴义市第四中学 | E95: 3012404 | F95: 初中体育与健康教师 | G95: 081125 | H95: 112.5 | I95: 0915093 | J95: 89.80 | K95: 80.92
A96: 89 | B96: 20240205911 | C96: 兴义市教育局 | D96: 兴义市第四中学 | E96: 3012404 | F96: 初中体育与健康教师 | G96: 081125 | H96: 113.5 | I96: 0915089 | J96: 88.60 | K96: 80.84
A97: 88 | B97: 20240205924 | C97: 兴义市教育局 | D97: 兴义市第四中学 | E97: 3012404 | F97: 初中体育与健康教师 | G97: 081125 | H97: 114 | I97: 0915088 | J97: 85.40 | K97: 79.76
A98: 96 | B98: 20240102703 | C98: 兴义市教育局 | D98: 兴义市第四中学 | E98: 3012404 | F98: 初中心理健康教师 | G98: 081126 | H98: 118 | I98: 0915096 | J98: 93.60 | K98: 84.64 | L98: 是
A99: 95 | B99: 20240502728 | C99: 兴义市教育局 | D99: 兴义市第四中学 | E99: 3012404 | F99: 初中心理健康教师 | G99: 081126 | H99: 118 | I99: 0915095 | J99: 92.60 | K99: 84.24
A100: 97 | B100: 20240401621 | C100: 兴义市教育局 | D100: 兴义市第四中学 | E100: 3012404 | F100: 初中心理健康教师 | G100: 081126 | H100: 118 | I100: 0915097 | J100: 92.20 | K100: 84.08
A101: 99 | B101: 20240501630 | C101: 兴义市教育局 | D101: 兴义市丰都街道办事处丰都中学 | E101: 3012405 | F101: 初中语文教师 | G101: 081127 | H101: 117.5 | I101: 0915099 | J101: 91.80 | K101: 83.72 | L101: 是
A102: 98 | B102: 20240207317 | C102: 兴义市教育局 | D102: 兴义市丰都街道办事处丰都中学 | E102: 3012405 | F102: 初中语文教师 | G102: 081127 | H102: 117.5 | I102: 0915098 | J102: 88.80 | K102: 82.52
A103: 100 | B103: 20240101024 | C103: 兴义市教育局 | D103: 兴义市丰都街道办事处丰都中学 | E103: 3012405 | F103: 初中数学教师 | G103: 081128 | H103: 109 | I103: 0915100 | J103: 92.00 | K103: 80.40 | L103: 是
A104: 101 | B104: 20240502815 | C104: 兴义市教育局 | D104: 兴义市丰都街道办事处丰都中学 | E104: 3012405 | F104: 初中数学教师 | G104: 081128 | H104: 108 | I104: 0915101 | J104: 91.20 | K104: 79.68
A105: 102 | B105: 20240403726 | C105: 兴义市教育局 | D105: 兴义市丰都街道办事处丰都中学 | E105: 3012405 | F105: 初中英语教师 | G105: 081129 | H105: 116.5 | I105: 0915102 | J105: 94.00 | K105: 84.20 | L105: 是
A106: 103 | B106: 20240206607 | C106: 兴义市教育局 | D106: 兴义市丰都街道办事处丰都中学 | E106: 3012405 | F106: 初中英语教师 | G106: 081129 | H106: 111.5 | I106: 0915103 | J106: 90.60 | K106: 80.84
A107: 104 | B107: 20240501028 | C107: 兴义市教育局 | D107: 兴义市丰都街道办事处丰都中学 | E107: 3012405 | F107: 初中历史教师 | G107: 081130 | H107: 115.5 | I107: 0915104 | J107: 92.60 | K107: 83.24 | L107: 是
A108: 105 | B108: 20240503824 | C108: 兴义市教育局 | D108: 兴义市丰都街道办事处丰都中学 | E108: 3012405 | F108: 初中历史教师 | G108: 081130 | H108: 112 | I108: 0915105 | J108: 89.80 | K108: 80.72 | L108: 是
A109: 107 | B109: 20240201213 | C109: 兴义市教育局 | D109: 兴义市丰都街道办事处丰都中学 | E109: 3012405 | F109: 初中历史教师 | G109: 081130 | H109: 111 | I109: 0915107 | J109: 87.00 | K109: 79.20
A110: 106 | B110: 20240401909 | C110: 兴义市教育局 | D110: 兴义市丰都街道办事处丰都中学 | E110: 3012405 | F110: 初中历史教师 | G110: 081130 | H110: 111 | I110: 0915106 | J110: 86.80 | K110: 79.12
A111: 108 | B111: 20240403111 | C111: 兴义市教育局 | D111: 兴义市马岭街道办事处马岭中学 | E111: 3012406 | F111: 初中数学教师 | G111: 081131 | H111: 115.5 | I111: 0915108 | J111: 87.20 | K111: 81.08 | L111: 是
A112: 109 | B112: 20240502205 | C112: 兴义市教育局 | D112: 兴义市马岭街道办事处马岭中学 | E112: 3012406 | F112: 初中数学教师 | G112: 081131 | H112: 108 | I112: 0915109 | J112: 92.80 | K112: 80.32
A113: 110 | B113: 20240205120 | C113: 兴义市教育局 | D113: 兴义市马岭街道办事处马岭中学 | E113: 3012406 | F113: 初中英语教师 | G113: 081132 | H113: 110.5 | I113: 0915110 | J113: 89.36 | K113: 79.94 | L113: 是
A114: 111 | B114: 20240101919 | C114: 兴义市教育局 | D114: 兴义市马岭街道办事处马岭中学 | E114: 3012406 | F114: 初中英语教师 | G114: 081132 | H114: 108 | I114: 0915111 | J114: 89.00 | K114: 78.80
A115: 113 | B115: 20240400913 | C115: 兴义市教育局 | D115: 兴义市洒金中学 | E115: 3012407 | F115: 初中语文教师 | G115: 081133 | H115: 118 | I115: 0915113 | J115: 85.28 | K115: 81.31 | L115: 是
A116: 114 | B116: 20240103026 | C116: 兴义市教育局 | D116: 兴义市洒金中学 | E116: 3012407 | F116: 初中语文教师 | G116: 081133 | H116: 116 | I116: 0915114 | J116: 85.08 | K116: 80.43 | L116: 是
A117: 112 | B117: 20240404605 | C117: 兴义市教育局 | D117: 兴义市洒金中学 | E117: 3012407 | F117: 初中语文教师 | G117: 081133 | H117: 119 | I117: 0915112 | J117: 81.52 | K117: 80.21
A118: 115 | B118: 20240301709 | C118: 兴义市教育局 | D118: 兴义市洒金中学 | E118: 3012407 | F118: 初中语文教师 | G118: 081133 | H118: 115.5 | I118: 0915115 | J118: 83.42 | K118: 79.57
A119: 116 | B119: 20240204826 | C119: 兴义市教育局 | D119: 兴义市洒金中学 | E119: 3012407 | F119: 初中英语教师 | G119: 081134 | H119: 116.5 | I119: 0915116 | J119: 90.92 | K119: 82.97 | L119: 是
A120: 118 | B120: 20240101203 | C120: 兴义市教育局 | D120: 兴义市洒金中学 | E120: 3012407 | F120: 初中英语教师 | G120: 081134 | H120: 116 | I120: 0915118 | J120: 89.68 | K120: 82.27 | L120: 是
A121: 119 | B121: 20240501304 | C121: 兴义市教育局 | D121: 兴义市洒金中学 | E121: 3012407 | F121: 初中英语教师 | G121: 081134 | H121: 114 | I121: 0915119 | J121: 88.86 | K121: 81.14
A122: 120 | B122: 20240401328 | C122: 兴义市教育局 | D122: 兴义市洒金中学 | E122: 3012407 | F122: 初中英语教师 | G122: 081134 | H122: 114 | I122: 0915120 | J122: 85.28 | K122: 79.71
A123: 117 | B123: 20240203501 | C123: 兴义市教育局 | D123: 兴义市洒金中学 | E123: 3012407 | F123: 初中英语教师 | G123: 081134 | H123: 116 | I123: 0915117 | J123: 82.78 | K123: 79.51
A124: 121 | B124: 20240102628 | C124: 兴义市教育局 | D124: 兴义市洒金中学 | E124: 3012407 | F124: 初中英语教师 | G124: 081134 | H124: 114 | I124: 0915121 | J124: 79.84 | K124: 77.54
A125: 122 | B125: 20240402616 | C125: 兴义市教育局 | D125: 兴义市洒金中学 | E125: 3012407 | F125: 初中物理教师 | G125: 081135 | H125: 105 | I125: 0915122 | J125: 83.12 | K125: 75.25 | L125: 是
A126: 123 | B126: 20240302122 | C126: 兴义市教育局 | D126: 兴义市洒金中学 | E126: 3012407 | F126: 初中物理教师 | G126: 081135 | H126: 103 | I126: 0915123 | J126: 81.04 | K126: 73.62
A127: 124 | B127: 20240205908 | C127: 兴义市教育局 | D127: 兴义市洒金中学 | E127: 3012407 | F127: 初中历史教师 | G127: 081136 | H127: 107.5 | I127: 0915124 | J127: 83.44 | K127: 76.38 | L127: 是
A128: 125 | B128: 20240502122 | C128: 兴义市教育局 | D128: 兴义市洒金中学 | E128: 3012407 | F128: 初中历史教师 | G128: 081136 | H128: 107 | I128: 0915125 | J128: 80.08 | K128: 74.83
A129: 127 | B129: 20240403512 | C129: 兴义市教育局 | D129: 兴义市洒金中学 | E129: 3012407 | F129: 初中地理教师 | G129: 081137 | H129: 116 | I129: 0915127 | J129: 70.48 | K129: 74.59 | L129: 是
A130: 126 | B130: 20240304511 | C130: 兴义市教育局 | D130: 兴义市洒金中学 | E130: 3012407 | F130: 初中地理教师 | G130: 081137 | H130: 122 | I130: 0915126 | J130: 缺考 | K130: =ROUND(H130/1.5*0.6,2) -> 48.80
A131: 133 | B131: 20240501720 | C131: 兴义市教育局 | D131: 兴义市洒金中学 | E131: 3012407 | F131: 初中道德与法治教师 | G131: 081138 | H131: 118 | I131: 0915133 | J131: 90.04 | K131: =ROUND((H131/1.5*0.6+J131*0.4),2) -> 83.22 | L131: 是
A132: 131 | B132: 20240404225 | C132: 兴义市教育局 | D132: 兴义市洒金中学 | E132: 3012407 | F132: 初中道德与法治教师 | G132: 081138 | H132: 120.5 | I132: 0915131 | J132: 85.48 | K132: 82.39 | L132: 是
A133: 130 | B133: 20240202607 | C133: 兴义市教育局 | D133: 兴义市洒金中学 | E133: 3012407 | F133: 初中道德与法治教师 | G133: 081138 | H133: 120.5 | I133: 0915130 | J133: 81.88 | K133: 80.95 | L133: 是
A134: 128 | B134: 20240404211 | C134: 兴义市教育局 | D134: 兴义市洒金中学 | E134: 3012407 | F134: 初中道德与法治教师 | G134: 081138 | H134: 122.5 | I134: 0915128 | J134: 78.86 | K134: 80.54
A135: 132 | B135: 20240206727 | C135: 兴义市教育局 | D135: 兴义市洒金中学 | E135: 3012407 | F135: 初中道德与法治教师 | G135: 081138 | H135: 120 | I135: 0915132 | J135: 80.12 | K135: 80.05
A136: 129 | B136: 20240204412 | C136: 兴义市教育局 | D136: 兴义市洒金中学 | E136: 3012407 | F136: 初中道德与法治教师 | G136: 081138 | H136: 121.5 | I136: 0915129 | J136: 77.76 | K136: 79.70
A137: 134 | B137: 20240302028 | C137: 兴义市教育局 | D137: 兴义市洒金中学 | E137: 3012407 | F137: 初中体育与健康教师 | G137: 081139 | H137: 122.5 | I137: 0915134 | J137: 85.88 | K137: 83.35 | L137: 是
A138: 135 | B138: 20240303718 | C138: 兴义市教育局 | D138: 兴义市洒金中学 | E138: 3012407 | F138: 初中体育与健康教师 | G138: 081139 | H138: 117 | I138: 0915135 | J138: 81.22 | K138: 79.29
A139: 136 | B139: 20240402521 | C139: 兴义市教育局 | D139: 兴义市实验中学 | E139: 3012408 | F139: 初中语文教师 | G139: 081140 | H139: 121.5 | I139: 0915136 | J139: 85.94 | K139: 82.98 | L139: 是
A140: 137 | B140: 20240300223 | C140: 兴义市教育局 | D140: 兴义市实验中学 | E140: 3012408 | F140: 初中语文教师 | G140: 081140 | H140: 120 | I140: 0915137 | J140: 86.16 | K140: 82.46 | L140: 是
A141: 140 | B141: 20240303825 | C141: 兴义市教育局 | D141: 兴义市实验中学 | E141: 3012408 | F141: 初中语文教师 | G141: 081140 | H141: 116.5 | I141: 0915140 | J141: 86.85 | K141: 81.34
A142: 139 | B142: 20240201930 | C142: 兴义市教育局 | D142: 兴义市实验中学 | E142: 3012408 | F142: 初中语文教师 | G142: 081140 | H142: 116.5 | I142: 0915139 | J142: 84.78 | K142: 80.51
A143: 138 | B143: 20240403019 | C143: 兴义市教育局 | D143: 兴义市实验中学 | E143: 3012408 | F143: 初中语文教师 | G143: 081140 | H143: 117 | I143: 0915138 | J143: 77.05 | K143: 77.62
A144: 141 | B144: 20240204816 | C144: 兴义市教育局 | D144: 兴义市实验中学 | E144: 3012408 | F144: 初中语文教师 | G144: 081140 | H144: 116.5 | I144: 0915141 | J144: 75.34 | K144: 76.74
A145: 142 | B145: 20240501215 | C145: 兴义市教育局 | D145: 兴义市实验中学 | E145: 3012408 | F145: 初中数学教师 | G145: 081141 | H145: 123.5 | I145: 0915142 | J145: 85.18 | K145: 83.47 | L145: 是
A146: 144 | B146: 20240502605 | C146: 兴义市教育局 | D146: 兴义市实验中学 | E146: 3012408 | F146: 初中数学教师 | G146: 081141 | H146: 120.5 | I146: 0915144 | J146: 86.72 | K146: 82.89 | L146: 是
A147: 146 | B147: 20240501829 | C147: 兴义市教育局 | D147: 兴义市实验中学 | E147: 3012408 | F147: 初中数学教师 | G147: 081141 | H147: 118.5 | I147: 0915146 | J147: 83.20 | K147: 80.68 | L147: 是
A148: 145 | B148: 20240500818 | C148: 兴义市教育局 | D148: 兴义市实验中学 | E148: 3012408 | F148: 初中数学教师 | G148: 081141 | H148: 119.5 | I148: 0915145 | J148: 81.30 | K148: 80.32
A149: 143 | B149: 20240102617 | C149: 兴义市教育局 | D149: 兴义市实验中学 | E149: 3012408 | F149: 初中数学教师 | G149: 081141 | H149: 122 | I149: 0915143 | J149: 78.47 | K149: 80.19
A150: 147 | B150: 20240300118 | C150: 兴义市教育局 | D150: 兴义市实验中学 | E150: 3012408 | F150: 初中数学教师 | G150: 081141 | H150: 116 | I150: 0915147 | J150: 83.81 | K150: 79.92
A151: 148 | B151: 20240400322 | C151: 兴义市教育局 | D151: 兴义市实验中学 | E151: 3012408 | F151: 初中数学教师 | G151: 081141 | H151: 116 | I151: 0915148 | J151: 78.75 | K151: 77.90
A152: 153 | B152: 20240104211 | C152: 兴义市教育局 | D152: 兴义市实验中学 | E152: 3012408 | F152: 初中英语教师 | G152: 081142 | H152: 113.5 | I152: 0915153 | J152: 90.58 | K152: 81.63 | L152: 是
A153: 149 | B153: 20240203419 | C153: 兴义市教育局 | D153: 兴义市实验中学 | E153: 3012408 | F153: 初中英语教师 | G153: 081142 | H153: 119.5 | I153: 0915149 | J153: 83.48 | K153: 81.19 | L153: 是
A154: 150 | B154: 20240301817 | C154: 兴义市教育局 | D154: 兴义市实验中学 | E154: 3012408 | F154: 初中英语教师 | G154: 081142 | H154: 119 | I154: 0915150 | J154: 83.40 | K154: 80.96
A155: 151 | B155: 20240302621 | C155: 兴义市教育局 | D155: 兴义市实验中学 | E155: 3012408 | F155: 初中英语教师 | G155: 081142 | H155: 116.5 | I155: 0915151 | J155: 81.56 | K155: 79.22
A156: 152 | B156: 20240302230 | C156: 兴义市教育局 | D156: 兴义市实验中学 | E156: 3012408 | F156: 初中英语教师 | G156: 081142 | H156: 113.5 | I156: 0915152 | J156: 82.39 | K156: 78.36
A157: 156 | B157: 20240207504 | C157: 兴义市教育局 | D157: 兴义市实验中学 | E157: 3012408 | F157: 初中物理教师 | G157: 081143 | H157: 111.5 | I157: 0915156 | J157: 89.26 | K157: 80.30 | L157: 是
A158: 154 | B158: 20240207922 | C158: 兴义市教育局 | D158: 兴义市实验中学 | E158: 3012408 | F158: 初中物理教师 | G158: 081143 | H158: 114.5 | I158: 0915154 | J158: 84.34 | K158: 79.54 | L158: 是
A159: 155 | B159: 20240302104 | C159: 兴义市教育局 | D159: 兴义市实验中学 | E159: 3012408 | F159: 初中物理教师 | G159: 081143 | H159: 113 | I159: 0915155 | J159: 84.74 | K159: 79.10
A160: 157 | B160: 20240504902 | C160: 兴义市教育局 | D160: 兴义市实验中学 | E160: 3012408 | F160: 初中物理教师 | G160: 081143 | H160: 111.5 | I160: 0915157 | J160: 81.49 | K160: 77.20
A161: 158 | B161: 20240402309 | C161: 兴义市教育局 | D161: 兴义市实验中学 | E161: 3012408 | F161: 初中化学教师 | G161: 081144 | H161: 117 | I161: 0915158 | J161: 81.80 | K161: 79.52 | L161: 是
A162: 159 | B162: 20240200625 | C162: 兴义市教育局 | D162: 兴义市实验中学 | E162: 3012408 | F162: 初中化学教师 | G162: 081144 | H162: 116.5 | I162: 0915159 | J162: 80.20 | K162: 78.68
A163: 160 | B163: 20240100404 | C163: 兴义市教育局 | D163: 兴义市实验中学 | E163: 3012408 | F163: 初中历史教师 | G163: 081145 | H163: 118.5 | I163: 0915160 | J163: 81.70 | K163: 80.08 | L163: 是
A164: 161 | B164: 20240102529 | C164: 兴义市教育局 | D164: 兴义市实验中学 | E164: 3012408 | F164: 初中历史教师 | G164: 081145 | H164: 117.5 | I164: 0915161 | J164: 81.50 | K164: 79.60 | L164: 是
A165: 165 | B165: 20240504127 | C165: 兴义市教育局 | D165: 兴义市实验中学 | E165: 3012408 | F165: 初中历史教师 | G165: 081145 | H165: 113 | I165: 0915165 | J165: 82.42 | K165: 78.17
A166: 163 | B166: 20240101412 | C166: 兴义市教育局 | D166: 兴义市实验中学 | E166: 3012408 | F166: 初中历史教师 | G166: 081145 | H166: 113 | I166: 0915163 | J166: 81.30 | K166: 77.72
A167: 162 | B167: 20240503422 | C167: 兴义市教育局 | D167: 兴义市实验中学 | E167: 3012408 | F167: 初中历史教师 | G167: 081145 | H167: 116 | I167: 0915162 | J167: 77.50 | K167: 77.40
A168: 164 | B168: 20240102108 | C168: 兴义市教育局 | D168: 兴义市实验中学 | E168: 3012408 | F168: 初中历史教师 | G168: 081145 | H168: 113 | I168: 0915164 | J168: 80.10 | K168: 77.24
A169: 166 | B169: 20240104710 | C169: 兴义市教育局 | D169: 兴义市实验中学 | E169: 3012408 | F169: 初中生物教师 | G169: 081146 | H169: 125 | I169: 0915166 | J169: 84.40 | K169: 83.76 | L169: 是
A170: 167 | B170: 20240207227 | C170: 兴义市教育局 | D170: 兴义市实验中学 | E170: 3012408 | F170: 初中生物教师 | G170: 081146 | H170: 119.5 | I170: 0915167 | J170: 83.20 | K170: 81.08
A171: 171 | B171: 20240100327 | C171: 兴义市教育局 | D171: 兴义市实验中学 | E171: 3012408 | F171: 初中道德与法治教师 | G171: 081147 | H171: 118 | I171: 0915171 | J171: 91.74 | K171: 83.90 | L171: 是
A172: 168 | B172: 20240207829 | C172: 兴义市教育局 | D172: 兴义市实验中学 | E172: 3012408 | F172: 初中道德与法治教师 | G172: 081147 | H172: 123 | I172: 0915168 | J172: 83.78 | K172: 82.71 | L172: 是
A173: 172 | B173: 20240103328 | C173: 兴义市教育局 | D173: 兴义市实验中学 | E173: 3012408 | F173: 初中道德与法治教师 | G173: 081147 | H173: 117.5 | I173: 0915172 | J173: 88.97 | K173: 82.59 | L173: 是
A174: 169 | B174: 20240302311 | C174: 兴义市教育局 | D174: 兴义市实验中学 | E174: 3012408 | F174: 初中道德与法治教师 | G174: 081147 | H174: 119.5 | I174: 0915169 | J174: 86.59 | K174: 82.44
A175: 170 | B175: 20240302227 | C175: 兴义市教育局 | D175: 兴义市实验中学 | E175: 3012408 | F175: 初中道德与法治教师 | G175: 081147 | H175: 119.5 | I175: 0915170 | J175: 86.51 | K175: 82.40
A176: 173 | B176: 20240102813 | C176: 兴义市教育局 | D176: 兴义市实验中学 | E176: 3012408 | F176: 初中道德与法治教师 | G176: 081147 | H176: 117 | I176: 0915173 | J176: 79.81 | K176: 78.72
A177: 174 | B177: 20240301319 | C177: 兴义市教育局 | D177: 兴义市万峰林民族学校 | E177: 3012409 | F177: 初中数学教师 | G177: 081148 | H177: 105 | I177: 0915174 | J177: 89.40 | K177: 77.76 | L177: 是
A178: 175 | B178: 20240100708 | C178: 兴义市教育局 | D178: 兴义市万峰林民族学校 | E178: 3012409 | F178: 初中数学教师 | G178: 081148 | H178: 103.5 | I178: 0915175 | J178: 85.14 | K178: 75.46
A179: 178 | B179: 20240205328 | C179: 兴义市教育局 | D179: 兴义市万峰学校 | E179: 3012410 | F179: 初中语文教师 | G179: 081149 | H179: 122 | I179: 0915178 | J179: 90.50 | K179: 85.00 | L179: 是
A180: 176 | B180: 20240206425 | C180: 兴义市教育局 | D180: 兴义市万峰学校 | E180: 3012410 | F180: 初中语文教师 | G180: 081149 | H180: 122.5 | I180: 0915176 | J180: 83.90 | K180: 82.56 | L180: 是
A181: 177 | B181: 20240504421 | C181: 兴义市教育局 | D181: 兴义市万峰学校 | E181: 3012410 | F181: 初中语文教师 | G181: 081149 | H181: 122.5 | I181: 0915177 | J181: 81.30 | K181: 81.52
A182: 179 | B182: 20240405327 | C182: 兴义市教育局 | D182: 兴义市万峰学校 | E182: 3012410 | F182: 初中语文教师 | G182: 081149 | H182: 117.5 | I182: 0915179 | J182: 82.10 | K182: 79.84
A183: 180 | B183: 20240304524 | C183: 兴义市教育局 | D183: 兴义市万峰学校 | E183: 3012410 | F183: 初中语文教师 | G183: 081149 | H183: 117.5 | I183: 0915180 | J183: 81.70 | K183: 79.68
A184: 181 | B184: 20240503411 | C184: 兴义市教育局 | D184: 兴义市万峰学校 | E184: 3012410 | F184: 初中数学教师 | G184: 081150 | H184: 123 | I184: 0915181 | J184: 88.00 | K184: 84.40 | L184: 是
A185: 182 | B185: 20240500708 | C185: 兴义市教育局 | D185: 兴义市万峰学校 | E185: 3012410 | F185: 初中数学教师 | G185: 081150 | H185: 117.5 | I185: 0915182 | J185: 89.40 | K185: 82.76 | L185: 是
A186: 185 | B186: 20240504021 | C186: 兴义市教育局 | D186: 兴义市万峰学校 | E186: 3012410 | F186: 初中数学教师 | G186: 081150 | H186: 116 | I186: 0915185 | J186: 85.00 | K186: 80.40 | L186: 是
A187: 183 | B187: 20240103324 | C187: 兴义市教育局 | D187: 兴义市万峰学校 | E187: 3012410 | F187: 初中数学教师 | G187: 081150 | H187: 117.5 | I187: 0915183 | J187: 83.40 | K187: 80.36
A188: 184 | B188: 20240102528 | C188: 兴义市教育局 | D188: 兴义市万峰学校 | E188: 3012410 | F188: 初中数学教师 | G188: 081150 | H188: 116 | I188: 0915184 | J188: 75.60 | K188: 76.64
A189: 186 | B189: 20240101005 | C189: 兴义市教育局 | D189: 兴义市万峰学校 | E189: 3012410 | F189: 初中数学教师 | G189: 081150 | H189: 116 | I189: 0915186 | J189: 缺考 | K189: =ROUND(H189/1.5*0.6,2) -> 46.40
A190: 190 | B190: 20240400203 | C190: 兴义市教育局 | D190: 兴义市万峰学校 | E190: 3012410 | F190: 初中英语教师 | G190: 081151 | H190: 117.5 | I190: 0915190 | J190: 86.90 | K190: =ROUND((H190/1.5*0.6+J190*0.4),2) -> 81.76 | L190: 是
A191: 187 | B191: 20240101208 | C191: 兴义市教育局 | D191: 兴义市万峰学校 | E191: 3012410 | F191: 初中英语教师 | G191: 081151 | H191: 123.5 | I191: 0915187 | J191: 80.80 | K191: 81.72 | L191: 是
A192: 188 | B192: 20240304008 | C192: 兴义市教育局 | D192: 兴义市万峰学校 | E192: 3012410 | F192: 初中英语教师 | G192: 081151 | H192: 118.5 | I192: 0915188 | J192: 84.10 | K192: 81.04
A193: 191 | B193: 20240402709 | C193: 兴义市教育局 | D193: 兴义市万峰学校 | E193: 3012410 | F193: 初中英语教师 | G193: 081151 | H193: 117.5 | I193: 0915191 | J193: 84.40 | K193: 80.76
A194: 189 | B194: 20240500626 | C194: 兴义市教育局 | D194: 兴义市万峰学校 | E194: 3012410 | F194: 初中英语教师 | G194: 081151 | H194: 118 | I194: 0915189 | J194: 79.90 | K194: 79.16
A195: 192 | B195: 20240206113 | C195: 兴义市教育局 | D195: 兴义市万峰学校 | E195: 3012410 | F195: 初中物理教师 | G195: 081152 | H195: 117.5 | I195: 0915192 | J195: 83.00 | K195: 80.20 | L195: 是
A196: 194 | B196: 20240207030 | C196: 兴义市教育局 | D196: 兴义市万峰学校 | E196: 3012410 | F196: 初中物理教师 | G196: 081152 | H196: 114 | I196: 0915194 | J196: 85.60 | K196: 79.84 | L196: 是
A197: 193 | B197: 20240104718 | C197: 兴义市教育局 | D197: 兴义市万峰学校 | E197: 3012410 | F197: 初中物理教师 | G197: 081152 | H197: 114.5 | I197: 0915193 | J197: 82.40 | K197: 78.76
A198: 195 | B198: 20240104110 | C198: 兴义市教育局 | D198: 兴义市万峰学校 | E198: 3012410 | F198: 初中物理教师 | G198: 081152 | H198: 113 | I198: 0915195 | J198: 77.20 | K198: 76.08
A199: 197 | B199: 20240402319 | C199: 兴义市教育局 | D199: 兴义市万峰学校 | E199: 3012410 | F199: 初中化学教师 | G199: 081153 | H199: 117.5 | I199: 0915197 | J199: 86.00 | K199: 81.40 | L199: 是
A200: 196 | B200: 20240302302 | C200: 兴义市教育局 | D200: 兴义市万峰学校 | E200: 3012410 | F200: 初中化学教师 | G200: 081153 | H200: 119 | I200: 0915196 | J200: 83.00 | K200: 80.80 | L200: 是
... 209 more rows
